Cogmind - Beta 13 @@@ ROGUE MODE // 2024.05.18 @ 23:16:22 Player: FlyingLemon Result: Self-destructed Performance ------------- Evolutions (1) 500 Regions Visited (2) 400 Robots Destroyed (22) 110 Value Destroyed (605) 605 Prototype IDs (0) 0 Alien Tech Used (0) 0 Bonus (200) 200 TOTAL SCORE: 1815 Bonus ------- Pacifist 200 Cogmind --------- Core Integrity 86/400 Matter 246/300 Energy 265/265 System Corruption 0% Temperature Cool (2) Movement Core (450) Ox8 Location -9/Materials Parts ------- > --- POWER (1) -------- Improved Ion Engine > --- PROPULSION (3) --- (None) > --- UTILITY (3) ------ Large Storage Unit Visual Processing Unit Signal Interpreter > --- WEAPON (2) ------- (None) > --- INVENTORY (15) --- Light Treads Wheel Flight Unit VTOL Module Advanced Weight Redist. System Visual Processing Unit ECM Suite Peak State ------------ > --- POWER ------------ Ion Engine > --- PROPULSION ------- Light Treads Light Treads Armored Wheel > --- UTILITY ---------- Small Storage Unit Visual Processing Unit Signal Interpreter > --- WEAPON ----------- Heavy Assault Rifle Maul > --- INVENTORY -------- Wheel Flight Unit VTOL Module Advanced Weight Redist. System Visual Processing Unit ECM Suite Grenade Launcher [Rating: 14] Favorites ----------- Power Light Ion Engine Engine Light Ion Engine Propulsion Light Treads Treads Light Treads Wheel Wheel Utility Small Storage Unit Storage Small Storage Unit Processor Visual Processing Unit Weapon Assault Rifle Ballistic Gun Assault Rifle Launcher Grenade Launcher Impact Weapon Maul Build | -11 -10 -9 ------- Run | Yrd Mat Mat Slots Evolved 2 | . . 2 Power . | . . . Propulsion 1 | . . 1 Utility 1 | . . 1 Weapon . | . . . Parts Attached 24 | 6 1 17 Power 3 | 1 . 2 Engine 3 | 1 . 2 Core . | . . . Reactor . | . . . Propulsion 9 | 2 . 7 Treads 6 | 1 . 5 Leg . | . . . Wheel 3 | 1 . 2 Hover . | . . . Flight . | . . . Utility 4 | 1 1 2 Device . | . . . Storage 2 | 1 . 1 Processor 2 | . 1 1 Hackware . | . . . Protection . | . . . Artifact . | . . . Weapon 8 | 2 . 6 Energy Gun . | . . . Energy Cannon . | . . . Ballistic Gun 6 | 2 . 4 Ballistic Cannon . | . . . Launcher 1 | . . 1 Special Weapon . | . . . Impact Weapon 1 | . . 1 Slashing Weapon . | . . . Piercing Weapon . | . . . Special Melee Weapon . | . . . Unidentified Prototypes . | . . . Parts Lost 9 | . . 9 Power . | . . . Propulsion 4 | . . 4 Utility . | . . . Weapon 5 | . . 5 Highest Loss Streak 6 | . . 6 To Critical Strikes . | . . . Average Slot Usage (%) 95 | . 95 95 Engine 11 | . 14 11 Treads 20 | . 14 21 Wheel 10 | . 14 9 Storage 11 | . 14 11 Processor 20 | . 9 22 Ballistic Gun 19 | . 28 17 Impact Weapon 1 | . . 1 Naked Turns . | . . . Heaviest Build 31 | 11 11 31 Greatest Support 40 | 20 20 40 Greatest Overweight (x) 9 | 2 1 9 Average Overweight (x) . | . . . Largest Inventory Capacity 15 | 8 8 15 Average Capacity 8 | 7 8 8 Most Carried 8 | 6 8 8 Average Carried 7 | 2 7 7 Final Capacity 15 | 8 8 15 Final Carried 8 | 6 8 7 Class Distribution -------------------- 84% | Mutant 15% | Scavenger-Mutant Dominant Class ---------------- Mutant | -10/Materials Mutant | -9/Materials Resources | -11 -10 -9 ----------- Run | Yrd Mat Mat Matter Collected 706 | 231 . 475 Remotely . | . . . Salvage Created 655 | . . 655 Parts 49 | . . 49 Haulers Intercepted . | . . . Recyclers Shooed 1 | . . 1 Parts Field Recycled . | . . . Retrieved Matter . | . . . Parts Self-Destructed . | . . . Prevented . | . . . Kills | -11 -10 -9 ------- Run | Yrd Mat Mat Combat Hostiles Destroyed 21 | . . 21 Guns 17 | . . 17 AOE 4 | . . 4 Classes Destroyed 4 | . . 4 Operator 1 | . . 1 Swarmer 9 | . . 9 Grunt 7 | . . 7 Sentry 5 | . . 5 Best Kill Streak 4 | . . 4 Combat Bots Only 4 | . . 4 Max Kills in Single Turn 3 | . . 3 Gunslinging . | . . . Exploded 3 | . . 3 Melee . | . . . Uniques/NPCs Destroyed . | . . . Combat | -11 -10 -9 -------- Run | Yrd Mat Mat Hostile Shots Fired 184 | . 8 176 Missed 44 | . 3 41 Damage Taken 1742 | . 68 1674 Core 329 | . 15 314 Absorbed by Shields . | . . . Core Remaining (%) 97 | 100 94 . Volleys Fired 89 | . 2 87 Largest 2 | . 2 2 Hottest 43 | . 40 43 Shots Fired 145 | . 4 141 Gun 141 | . 4 137 Cannon . | . . . Launcher 4 | . . 4 Special . | . . . Kinetic 141 | . 4 137 Thermal . | . . . Explosive 4 | . . 4 Electromagnetic . | . . . Robot Hit Streak 10 | . 2 10 Robot Miss Streak 3 | . . 3 Penetration Max . | . . . Secondary Targets 1 | . . 1 Max Gunslinging Chain 1 | . . 1 Shots Hit Robots 94 | . 2 92 Core Hits 38 | . . 38 Critical Kills . | . . . Critical Parts Destroyed . | . . . Critical Strikes . | . . . Melee Attacks 4 | . . 4 Impact 4 | . . 4 Slashing . | . . . Piercing . | . . . Sneak Attacks 1 | . . 1 Combat Hostiles . | . . . Follow-up Attacks . | . . . Damage Inflicted 1357 | . 19 1338 Guns 1076 | . 19 1057 Cannons . | . . . Explosions 193 | . . 193 Melee 88 | . . 88 Ramming . | . . . Kinetic 1076 | . 19 1057 Thermal . | . . . Explosive 193 | . . 193 Electromagnetic . | . . . Impact 88 | . . 88 Slashing . | . . . Piercing . | . . . Highest Corruption . | . . . Average Corruption . | . . . Corruption Purged . | . . . Corruption Blocked . | . . . Overload Shots . | . . . Overflow Damage 103 | . . 103 Projectiles . | . . . Explosions 27 | . . 27 Melee 76 | . . 76 Knockbacks . | . . . Impact . | . . . Kinetic . | . . . Secondary . | . . . Self-Inflicted Damage 37 | . . 37 Shots 1 | . . 1 Rammed . | . . . Targets Rammed . | . . . Kicked . | . . . Crushed . | . . . Highest Temperature 26 | . 9 26 Average Temperature 6 | . 9 6 Received Heat Transfer 606 | . 39 567 Siege Activations . | . . . Robots Corrupted . | . . . Combat Hostiles . | . . . Parts Fried 1 | . . 1 Impact Corruptions 3 | . . 3 Robots Melted . | . . . Combat Hostiles . | . . . Parts Melted . | . . . Heat Transferred . | . . . Parts Sabotaged . | . . . Parts Stolen . | . . . Parts Stripped . | . . . Power Chain Reactions . | . . . Alert | -11 -10 -9 ------- Run | Yrd Mat Mat Peak Influence 369 | . 27 369 Initial 11 | . . 11 Average 134 | . 11 166 Maximum Alert Level 1 | . . 1 Low Security (%) 71 | 100 100 63 Level 1 28 | . . 36 Level 2 . | . . . Level 3 . | . . . Level 4 . | . . . Level 5 . | . . . High Security . | . . . Max Security . | . . . Squads Dispatched 3 | . . 3 Investigation . | . . . Extermination . | . . . Reinforcement 3 | . . 3 Assault . | . . . Garrison . | . . . Intercept . | . . . Searches Triggered . | . . . Construction Impeded 1 | . . 1 Haulers Reinforced . | . . . Active Scanning Responses . | . . . Cargo Convoy Interrupts . | . . . Stealth | -11 -10 -9 --------- Run | Yrd Mat Mat Distress Signals 6 | . . 6 Communications Jammed . | . . . Distress Signals . | . . . Times Spotted 47 | . 6 41 Peak Tracking Total 9 | . 5 9 Tactical Retreats 3 | . . 3 Traps | -11 -10 -9 ------- Run | Yrd Mat Mat Traps Triggered . | . . . Indirectly . | . . . Trap Hack Attempts . | . . . Triggered . | . . . Disarmed . | . . . Reprogrammed . | . . . Reused . | . . . Traps Extracted . | . . . Installed . | . . . Triggered . | . . . Machines | -11 -10 -9 ---------- Run | Yrd Mat Mat Machines Disabled 1 | . . 1 Max in Single Turn 1 | . . 1 Machines Repaired . | . . . Machines Dismantled . | . . . Machines Sabotaged . | . . . Overloaded Fab Kills . | . . . Hacking | -11 -10 -9 --------- Run | Yrd Mat Mat Machines Accessed 8 | . 3 5 Terminals 4 | . 2 2 Fabricators . | . . . Repair Stations 1 | . . 1 Recycling Units 2 | . 1 1 Scanalyzers 1 | . . 1 Garrison Access . | . . . Total Hacks 21 | . 9 12 Successful 19 | . 9 10 Failed 2 | . . 2 Catastrophic . | . . . Database Lockouts . | . . . Manual 14 | . 8 6 Terminals 9 | . 6 3 Fabricators . | . . . Repair Stations 2 | . . 2 Recycling Units 4 | . 3 1 Scanalyzers 6 | . . 6 Garrison Access . | . . . Terminal Hacks 4 | . 3 1 Emergency Access Points 3 | . 2 1 Hauler Manifests 1 | . 1 . Fabricator Hacks . | . . . Repair Station Hacks . | . . . Recycling Unit Hacks 2 | . 1 1 Report Inventory 2 | . 1 1 Scanalyzer 6 | . . 6 Insert Component 3 | . . 3 Analyze 3 | . . 3 Garrison Access Hacks . | . . . Unauthorized Hacks 7 | . 5 2 Terminals 5 | . 3 2 Botnet 4 | . 2 2 Operators 1 | . 1 . Fabricators . | . . . Repair Stations . | . . . Recycling Units 2 | . 2 . Monitor 1 | . 1 . Recyclers 1 | . 1 . Scanalyzers . | . . . Garrison Access . | . . . Data Cores Recovered . | . . . Used . | . . . Hacking Detections 7 | . 2 5 Full Trace Events 1 | . . 1 Feedback Events . | . . . Feedback Blocked . | . . . Robot Schematics Acquired . | . . . Robots Built . | . . . Authchips . | . . . Time . | . . . Total Robot Build Rating . | . . . Part Schematics Acquired 3 | . . 3 Parts Built . | . . . Authchips . | . . . Time . | . . . Total Part Build Rating . | . . . Parts Repaired . | . . . Time . | . . . Parts Recycled . | . . . Recycled Matter . | . . . Retrieved Matter . | . . . Retrieved Components . | . . . Parts Scanalyzed 3 | . . 3 Part Schematics Acquired 3 | . . 3 Parts Damaged . | . . . Bothacking | -11 -10 -9 ------------ Run | Yrd Mat Mat Used RIF Installer . | . . . Robots Hacked . | . . . Non-combat . | . . . Combat . | . . . Robot Hacks Applied . | . . . Relay Couplers Released . | . . . Fabnet Peak Effective % . | . . . Robots Rewired . | . . . Allies Hacked . | . . . Hacks Repelled . | . . . Allies | -11 -10 -9 -------- Run | Yrd Mat Mat Total Allies . | . . . Largest Group . | . . . Highest-Rated Group . | . . . Highest-Rated Ally . | . . . Total Orders . | . . . Ally Attacks . | . . . Total Damage . | . . . Kills . | . . . Allies Corrupted . | . . . Allies Melted . | . . . Intel | -11 -10 -9 ------- Run | Yrd Mat Mat Robot Analysis Total . | . . . Derelict Logs Recovered . | . . . Drone Launches . | . . . Drone Recoveries . | . . . Exploration | -11 -10 -9 ------------- Run | Yrd Mat Mat Turns Passed 1119 | 62 161 896 Spaces Moved 758 | 43 153 562 Core 16 | 15 . 1 Treads 98 | 7 3 88 Legs . | . . . Wheels 644 | 21 150 473 Hover . | . . . Flight . | . . . Fastest Speed 50 | 50 95 80 Average Speed 105 | 109 96 107 Slowest Speed 500 | 160 160 500 Overloaded Moves . | . . . Propulsion Burnouts . | . . . Robots Hopped . | . . . Cave-ins Triggered . | . . . Exploration Rate (%) 29 | 3 36 49 Regions Visited 2 Branch Regions . Pre-discovered Areas . | . . . Known Exits Taken . | . . . Unknown Exits Taken 2 | 1 1 . Scrap Searched . | . . . Spaces Dug 2 | . . 2 Terrain Destroyed 34 | . . 34 Melee 2 | . . 2 Projectile . | . . . AOE 32 | . . 32 Terrain Rammed . | . . . Walls Destroyed . | . . . Machines Disabled . | . . . Actions | -11 -10 -9 --------- Run | Yrd Mat Mat Total 935 | 54 164 717 Wait 30 | . 1 29 Move 756 | 42 152 562 Hop . | . . . Pick Up 17 | 6 5 6 Fast Attach 10 | 6 1 3 Attach 6 | . . 6 Detach . | . . . Swap 8 | . . 8 Drop 15 | . 3 12 Fire 89 | . 2 87 Melee 4 | . . 4 Ram . | . . . Kick . | . . . Crush . | . . . Escape Stasis . | . . . Rewire . | . . . Trap . | . . . Miscellaneous . | . . . Route ------- -11/Scrapyard -10/Materials -9/Materials (discovered 1 exit: *Mat) History --------- Turn | Location | Event 17 | -11/Scrapyard | Discovered new exit (range 16) 63 | -11/Scrapyard | Entered Materials 204 | -10/Materials | Discovered new exit (range 9) 224 | -10/Materials | Entered another Materials area 224 | -9/Materials | Evolved 2 slots: Propulsion x1, Utility x1 303 | -9/Materials | Build established: Mutant 813 | -9/Materials | Discovered new exit (range 7) 818 | -9/Materials | Identified exit to Materials 1097 | -9/Materials | Core integrity fell below 50% 1120 | -9/Materials | Self-destructed Last Messages --------------- K-01 Serf collects debris. O-16 Technician sends out distress signal. O-16 Technician: "IFF HANDSHAKE FAILED. SECURING TERMINAL." W-16 Scout sends out distress signal. ALERT: Hostiles spotted, dispatching reinforcements to Terminal M009. Lgt. Treads destroyed. Arm. Wheel destroyed. Hvy. Assault Rifle destroyed. Lgt. Treads destroyed. Lgt. Assault Rifle destroyed. Destroyed Flight Unit. S-10 Pest destroyed. U-05 Engineer builds a Wall. W-16 Scout sends out distress signal. Y-45 Defender destroyed. U-05 Engineer lays Concrete. Grenade Launcher destroyed. Destroyed Grenade Launcher. ALERT: Construction progress impeded, dispatching reinforcements to local area. Map ----- +----------------------------------------------------+ | | | ???????????????????????????????????????????? | | ???????????????????????????????????????????? | | ???????????????????????????????????????????? | | ???????????????????????????????????????????? | | ???????????????????????????????????????????? | | ???????????????????????????????????????????? | | ???????????????????????????????????????????? | | ???????????????????????????????????????????? | | ???????????????????????????????????????????? | | ???????????????????????????????????????????? | | ??????????# ????????#??????????????????????? | | ??????????# ?#?##### ??????????????????????? | | ??????????? ## ??????????????????????? | | ???????????? ? ??????????????????????? | | ???????????? ??????????????????????? | | ????????????? # [%* ???????????????????????? | | ?????????##### = ???????????????????????? | | ?????????# ???????????????????????? | | ?????????# ?????????????????####### | | ?????????# %[ ?????????????????# | | ?????????# ==?????????????????# | | ?????????# %[####??????????????# | | ?????????# ################ #?? | | ?????????# u gmu w #?? | | ???????????????# Y@ ######### #?? | | ???????????????# #########???????# #?? | | ????????????? ??????????????# #?? | | ???????????# """ #?????????##### #?? | | ???????????# """ #????????##! ## ##? | | ???????????#"" """ #???????#! #? | | ???????????#"T o ##???????#! ## | | ???????????#"" #????????#! | | ???????????# #????????#! | | ???????#################????????##! % | | ???????# #????????????????########### | | ???????# #????????????????########### | | ???????# #????????????????# # | | ???????# #????????????????# # | | ???????# #????????????????# %/ | | ???????# #????????????????# # | | ???????# ] ##########???????#####/##### | | ???????# # #???????????# #???# | | ???????# # """"" #???????????# #???# | | ???????#####+#### """"" #########???# #???# | | ????????# # """"" ## #???# #???# | | ????????# < + """"" ## """ #???# #???? | | ????????# # """"" ## """ #???# #???? | | ????????##### #= """"" ## """ #???# #???? | | ????????????# # """"" ## #???# #???? | +----------------------------------------------------+ Best States ------------- Heat Dissipation 28 Energy Generation 12 Energy Capacity 265 Matter Stores 300 Matter Capacity 300 Sight Range 18 Terrain Scan Density 10 Evasion (%) 44 Recoil Reduction 2 Item Schematics ----------------- VTOL Module | -9/Materials | Scanalyzed Adv. Weight Redist. System | -9/Materials | Scanalyzed ECM Suite | -9/Materials | Scanalyzed Robot Schematics ------------------ None Fabricated ------------ Nothing Alien Tech Used ----------------- None Achievements -------------- None Challenges ------------ None Game ------ Seed ShadeMassCleaver Manual? 0 Play Time 00:19:03 Cumulative 29.4 hours Start 2024.05.18 @ 22:31:15 End 2024.05.18 @ 23:16:22 Sessions 1 Manual Loads 0 Difficulty Rogue Special Mode None Game No. 41 Rogue 41 Adventurer 0 Explorer 0 Win Type - Total 0 Types 0/0/0/0/0/0/0/0/0 Lore% 30 Gallery% 39 Achievement% 30 Wizard Run 0 Options --------- Layout 0 ASCII 0 Keyboard 0 Movement Numpad Keybinds 0 Fullscreen 2 Font 24/Smallcaps Map View 76x50 Zoom Use 0% Tactical HUD 0 Map Filters NONE Filters NONE Steam 1 RUN: 8be1d533-ed69-4d01-be5a-e01d10025b6b